[Event "December 5 Late 2023"]
[Site "https://www.chess.com"]
[Date "2023.12.05"]
[Round "3"]
[White "Marchesich, Giovanni"]
[Black "Erdogan, Anil Berk"]
[Result "0-1"]
[Board "105"]
[TimeControl "180+1"]
[WhiteFideId "2824790"]
[BlackFideId "6348173"]
[WhiteElo "2405"]
[BlackElo "2575"]
[WhiteTeam "ITA"]
[BlackTeam "TUR"]
[WhiteClock "0:01:17"]
[BlackClock "0:01:33"]

1. e4 {[%clk 0:03:00]}  c5 {[%clk 0:03:00]} 2. Nf3 {[%clk 0:03:00]}  g6 {[%clk 0:03:00]} 3. d4 {[%clk 0:02:58]}  cxd4 {[%clk 0:03:01]} 4. Nxd4 {[%clk 0:02:57]}  Nc6 {[%clk 0:03:01]} 5. Be3 {[%clk 0:02:56]}  Nf6 {[%clk 0:03:00]} 6. Nc3 {[%clk 0:02:56]}  d5 {[%clk 0:02:58]} 7. Nxc6 {[%clk 0:02:43]}  bxc6 {[%clk 0:02:57]} 8. e5 {[%clk 0:02:40]}  Nd7 {[%clk 0:02:56]} 9. Bd4 {[%clk 0:02:40]}  Bg7 {[%clk 0:02:48]} 10. e6 {[%clk 0:02:38]}  Nf6 {[%clk 0:02:48]} 11. exf7+ {[%clk 0:02:36]}  Kxf7 {[%clk 0:02:49]} 12. Bd3 {[%clk 0:02:29]}  e5 {[%clk 0:02:29]} 13. Bxe5 {[%clk 0:02:26]}  Re8 {[%clk 0:02:30]} 14. f4 {[%clk 0:02:26]}  Ng4 {[%clk 0:02:29]} 15. O-O {[%clk 0:02:25]}  Qb6+ {[%clk 0:02:27]} 16. Kh1 {[%clk 0:02:21]}  Nf2+ {[%clk 0:02:21]} 17. Rxf2 {[%clk 0:02:19]}  Qxf2 {[%clk 0:02:22]} 18. Bxg7 {[%clk 0:02:13]}  Kxg7 {[%clk 0:02:23]} 19. h3 {[%clk 0:01:44]}  Re3 {[%clk 0:02:10]} 20. Qg1 {[%clk 0:01:33]}  Qxg1+ {[%clk 0:01:53]} 21. Kxg1 {[%clk 0:01:33]}  Rb8 {[%clk 0:01:50]} 22. b3 {[%clk 0:01:31]}  Bf5 {[%clk 0:01:49]} 23. Nd1 {[%clk 0:01:28]}  Re1+ {[%clk 0:01:44]} 24. Kf2 {[%clk 0:01:27]}  Rbe8 {[%clk 0:01:44]} 25. Rc1 {[%clk 0:01:20]}  Bxd3 {[%clk 0:01:36]} 26. cxd3 {[%clk 0:01:21]}  R8e2+ {[%clk 0:01:36]} 27. Kf3 {[%clk 0:01:21]}  Rd2 {[%clk 0:01:36]} 28. Rxc6 {[%clk 0:01:20]}  Rxd3+ {[%clk 0:01:33]} 29. Kf2 {[%clk 0:01:17]}  Rexd1 {[%clk 0:01:33]} 0-1

[Event "December 5 Late 2023"]
[Site "https://www.chess.com"]
[Date "2023.12.05"]
[Round "3"]
[White "Sivakumar, Shaaketh"]
[Black "PresidentLoek"]
[Result "1-0"]
[Board "107"]
[TimeControl "180+1"]
[WhiteFideId "30940176"]
[WhiteElo "2570"]
[BlackElo "2401"]
[WhiteTeam "USA"]
[WhiteClock "0:00:23"]
[BlackClock "0:00:06"]

1. Nf3 {[%clk 0:03:00]}  g6 {[%clk 0:02:59]} 2. c4 {[%clk 0:02:53]}  Bg7 {[%clk 0:03:00]} 3. g3 {[%clk 0:02:53]}  d6 {[%clk 0:03:00]} 4. Bg2 {[%clk 0:02:54]}  Nf6 {[%clk 0:02:58]} 5. d3 {[%clk 0:02:54]}  O-O {[%clk 0:02:57]} 6. Nc3 {[%clk 0:02:54]}  c6 {[%clk 0:02:57]} 7. O-O {[%clk 0:02:54]}  Bg4 {[%clk 0:02:53]} 8. Rb1 {[%clk 0:02:12]}  Qc8 {[%clk 0:02:51]} 9. Re1 {[%clk 0:02:11]}  e5 {[%clk 0:02:47]} 10. b4 {[%clk 0:02:07]}  Bh3 {[%clk 0:02:42]} 11. Bh1 {[%clk 0:02:07]}  Re8 {[%clk 0:02:34]} 12. a4 {[%clk 0:02:06]}  Nbd7 {[%clk 0:02:25]} 13. b5 {[%clk 0:02:02]}  Nf8 {[%clk 0:01:41]} 14. a5 {[%clk 0:01:59]}  Ne6 {[%clk 0:01:39]} 15. a6 {[%clk 0:01:59]}  bxa6 {[%clk 0:01:20]} 16. bxc6 {[%clk 0:01:47]}  Nc5 {[%clk 0:00:47]} 17. Ba3 {[%clk 0:01:41]}  Rb8 {[%clk 0:00:38]} 18. Nxe5 {[%clk 0:01:33]}  Rxe5 {[%clk 0:00:37]} 19. d4 {[%clk 0:01:34]}  Nfe4 {[%clk 0:00:26]} 20. Rxb8 {[%clk 0:01:15]}  Qxb8 {[%clk 0:00:25]} 21. Nxe4 {[%clk 0:01:01]}  Rxe4 {[%clk 0:00:25]} 22. dxc5 {[%clk 0:01:02]}  Rxc4 {[%clk 0:00:24]} 23. cxd6 {[%clk 0:01:00]}  Be5 {[%clk 0:00:18]} 24. d7 {[%clk 0:00:24]}  Bc7 {[%clk 0:00:18]} 25. Be7 {[%clk 0:00:23]}  Bd8 {[%clk 0:00:17]} 26. Bxd8 {[%clk 0:00:23]}  Qxd8 {[%clk 0:00:18]} 27. Qd5 {[%clk 0:00:22]}  Rc2 {[%clk 0:00:17]} 28. Qe4 {[%clk 0:00:22]}  Bf5 {[%clk 0:00:12]} 29. Qe8+ {[%clk 0:00:22]}  Qxe8 {[%clk 0:00:06]} 30. dxe8=Q+ {[%clk 0:00:23]} 1-0

[Event "December 5 Late 2023"]
[Site "https://www.chess.com"]
[Date "2023.12.05"]
[Round "3"]
[White "Veljanoski, Andrej"]
[Black "JERO-8914"]
[Result "0-1"]
[Board "109"]
[TimeControl "180+1"]
[WhiteFideId "15003604"]
[WhiteElo "2567"]
[BlackElo "2394"]
[WhiteTeam "MKD"]
[WhiteClock "0:00:01"]
[BlackClock "0:00:26"]

1. c4 {[%clk 0:03:00]}  e5 {[%clk 0:02:59]} 2. Nc3 {[%clk 0:03:00]}  g6 {[%clk 0:02:57]} 3. g3 {[%clk 0:03:00]}  Bg7 {[%clk 0:02:58]} 4. Bg2 {[%clk 0:03:00]}  Nc6 {[%clk 0:02:58]} 5. d3 {[%clk 0:02:59]}  Nge7 {[%clk 0:02:58]} 6. Nf3 {[%clk 0:03:00]}  h5 {[%clk 0:02:58]} 7. h3 {[%clk 0:02:57]}  d6 {[%clk 0:02:58]} 8. O-O {[%clk 0:02:57]}  h4 {[%clk 0:02:46]} 9. g4 {[%clk 0:02:46]}  Be6 {[%clk 0:02:40]} 10. e4 {[%clk 0:02:45]}  Qd7 {[%clk 0:02:39]} 11. Ng5 {[%clk 0:02:42]}  Nd4 {[%clk 0:02:30]} 12. Be3 {[%clk 0:02:36]}  Nec6 {[%clk 0:02:28]} 13. a3 {[%clk 0:02:32]}  Bf6 {[%clk 0:02:18]} 14. Nxe6 {[%clk 0:02:18]}  Nxe6 {[%clk 0:02:19]} 15. Nd5 {[%clk 0:02:15]}  Bg7 {[%clk 0:02:02]} 16. b4 {[%clk 0:02:07]}  Ncd4 {[%clk 0:02:02]} 17. b5 {[%clk 0:02:07]}  c6 {[%clk 0:01:59]} 18. bxc6 {[%clk 0:02:07]}  bxc6 {[%clk 0:02:00]} 19. Nc3 {[%clk 0:02:07]}  O-O {[%clk 0:01:59]} 20. Rb1 {[%clk 0:01:59]}  Rab8 {[%clk 0:01:58]} 21. Qd2 {[%clk 0:01:27]}  Nb3 {[%clk 0:01:51]} 22. Qa2 {[%clk 0:01:21]}  Nec5 {[%clk 0:01:40]} 23. Rfd1 {[%clk 0:01:06]}  Nd4 {[%clk 0:01:37]} 24. Bxd4 {[%clk 0:01:00]}  exd4 {[%clk 0:01:38]} 25. Ne2 {[%clk 0:01:01]}  Na4 {[%clk 0:01:32]} 26. Qc2 {[%clk 0:00:38]}  Nc3 {[%clk 0:01:24]} 27. Nxc3 {[%clk 0:00:38]}  dxc3 {[%clk 0:01:25]} 28. Rxb8 {[%clk 0:00:35]}  Rxb8 {[%clk 0:01:26]} 29. d4 {[%clk 0:00:36]}  c5 {[%clk 0:00:56]} 30. dxc5 {[%clk 0:00:17]}  Rb2 {[%clk 0:00:57]} 31. Qc1 {[%clk 0:00:17]}  Qc7 {[%clk 0:00:42]} 32. cxd6 {[%clk 0:00:17]}  Qc5 {[%clk 0:00:38]} 33. Qf4 {[%clk 0:00:04]}  Be5 {[%clk 0:00:33]} 34. d7 {[%clk 0:00:03]}  Bxf4 {[%clk 0:00:26]} 35. d8=Q+ {[%clk 0:00:04]}  Kg7 {[%clk 0:00:27]} 36. e5 {[%clk 0:00:01]}  Qxf2+ {[%clk 0:00:26]} 0-1

[Event "December 5 Late 2023"]
[Site "https://www.chess.com"]
[Date "2023.12.05"]
[Round "3"]
[White "Fernandez Bustamante, Leancy B."]
[Black "Osmak, Yuliia"]
[Result "0-1"]
[Board "110"]
[TimeControl "180+1"]
[WhiteFideId "3523870"]
[BlackFideId "14101602"]
[WhiteElo "2390"]
[BlackElo "2567"]
[WhiteTeam "CUB"]
[BlackTeam "UKR"]
[WhiteClock "0:00:05"]
[BlackClock "0:00:17"]

1. e4 {[%clk 0:03:00]}  e6 {[%clk 0:02:53]} 2. Nf3 {[%clk 0:03:00]}  d5 {[%clk 0:02:53]} 3. e5 {[%clk 0:02:58]}  c5 {[%clk 0:02:52]} 4. c3 {[%clk 0:02:58]}  d4 {[%clk 0:02:50]} 5. Bb5+ {[%clk 0:02:58]}  Bd7 {[%clk 0:02:50]} 6. Bxd7+ {[%clk 0:02:57]}  Qxd7 {[%clk 0:02:50]} 7. c4 {[%clk 0:02:55]}  Nc6 {[%clk 0:02:49]} 8. d3 {[%clk 0:02:54]}  Nge7 {[%clk 0:02:46]} 9. Bf4 {[%clk 0:02:53]}  Ng6 {[%clk 0:02:45]} 10. Bg3 {[%clk 0:02:53]}  Be7 {[%clk 0:02:36]} 11. h4 {[%clk 0:02:49]}  h5 {[%clk 0:02:28]} 12. Nbd2 {[%clk 0:02:47]}  Qc7 {[%clk 0:02:11]} 13. Qe2 {[%clk 0:02:44]}  Qb6 {[%clk 0:02:03]} 14. Ne4 {[%clk 0:02:37]}  Qa5+ {[%clk 0:02:01]} 15. Ned2 {[%clk 0:02:32]}  Bd8 {[%clk 0:01:52]} 16. O-O {[%clk 0:02:27]}  Bc7 {[%clk 0:01:52]} 17. a3 {[%clk 0:02:19]}  Qb6 {[%clk 0:01:48]} 18. b4 {[%clk 0:02:07]}  cxb4 {[%clk 0:01:42]} 19. axb4 {[%clk 0:02:08]}  Nxb4 {[%clk 0:01:40]} 20. Rfb1 {[%clk 0:02:04]}  a5 {[%clk 0:01:37]} 21. Nb3 {[%clk 0:01:53]}  O-O {[%clk 0:01:31]} 22. c5 {[%clk 0:01:49]}  Qc6 {[%clk 0:01:13]} 23. Nfxd4 {[%clk 0:01:45]}  Qd5 {[%clk 0:01:13]} 24. Nb5 {[%clk 0:01:11]}  Bxe5 {[%clk 0:01:05]} 25. Bxe5 {[%clk 0:01:07]}  Qxe5 {[%clk 0:01:06]} 26. Qxe5 {[%clk 0:01:06]}  Nxe5 {[%clk 0:01:06]} 27. d4 {[%clk 0:00:54]}  Nec6 {[%clk 0:00:57]} 28. Nxa5 {[%clk 0:00:36]}  Nc2 {[%clk 0:00:53]} 29. Ra2 {[%clk 0:00:17]}  N2xd4 {[%clk 0:00:30]} 30. Nxc6 {[%clk 0:00:16]}  Nxc6 {[%clk 0:00:25]} 31. Rxa8 {[%clk 0:00:14]}  Rxa8 {[%clk 0:00:26]} 32. Nd6 {[%clk 0:00:15]}  Nd8 {[%clk 0:00:19]} 33. Nxb7 {[%clk 0:00:13]}  Rb8 {[%clk 0:00:19]} 34. c6 {[%clk 0:00:13]}  Nxc6 {[%clk 0:00:18]} 35. Rb3 {[%clk 0:00:11]}  Nd8 {[%clk 0:00:18]} 36. Nc5 {[%clk 0:00:10]}  Rxb3 {[%clk 0:00:17]} 37. Nxb3 {[%clk 0:00:11]}  f6 {[%clk 0:00:17]} 38. Nc5 {[%clk 0:00:10]}  Kf7 {[%clk 0:00:17]} 39. f3 {[%clk 0:00:10]}  e5 {[%clk 0:00:17]} 40. Kf2 {[%clk 0:00:10]}  Ne6 {[%clk 0:00:16]} 41. Ke3 {[%clk 0:00:11]}  Nxc5 {[%clk 0:00:16]} 42. g3 {[%clk 0:00:10]}  Ne6 {[%clk 0:00:16]} 43. g4 {[%clk 0:00:10]}  g6 {[%clk 0:00:15]} 44. gxh5 {[%clk 0:00:10]}  gxh5 {[%clk 0:00:16]} 45. Ke4 {[%clk 0:00:10]}  Kg6 {[%clk 0:00:16]} 46. Kd5 {[%clk 0:00:10]}  Nf4+ {[%clk 0:00:16]} 47. Ke4 {[%clk 0:00:10]}  Ng2 {[%clk 0:00:17]} 48. f4 {[%clk 0:00:09]}  Nxf4 {[%clk 0:00:16]} 49. Kf3 {[%clk 0:00:09]}  Kf5 {[%clk 0:00:16]} 50. Kg3 {[%clk 0:00:09]}  e4 {[%clk 0:00:17]} 51. Kf2 {[%clk 0:00:09]}  Kg4 {[%clk 0:00:17]} 52. Ke3 {[%clk 0:00:08]}  f5 {[%clk 0:00:17]} 53. Kf2 {[%clk 0:00:08]}  Kxh4 {[%clk 0:00:17]} 54. Ke3 {[%clk 0:00:08]}  Kg4 {[%clk 0:00:17]} 55. Kf2 {[%clk 0:00:08]}  h4 {[%clk 0:00:18]} 56. Kg1 {[%clk 0:00:08]}  h3 {[%clk 0:00:18]} 57. Kh2 {[%clk 0:00:09]}  e3 {[%clk 0:00:18]} 58. Kg1 {[%clk 0:00:09]}  e2 {[%clk 0:00:17]} 59. Kh2 {[%clk 0:00:09]}  Kf3 {[%clk 0:00:16]} 60. Kh1 {[%clk 0:00:08]}  e1=Q+ {[%clk 0:00:16]} 61. Kh2 {[%clk 0:00:08]}  Qg3+ {[%clk 0:00:16]} 62. Kh1 {[%clk 0:00:05]}  Qg2# {[%clk 0:00:17]} 0-1

[Event "December 5 Late 2023"]
[Site "https://www.chess.com"]
[Date "2023.12.05"]
[Round "3"]
[White "Roberson, Peter T"]
[Black "Alvarado, Carlos"]
[Result "1-0"]
[Board "113"]
[TimeControl "180+1"]
[WhiteFideId "412384"]
[BlackFideId "3800555"]
[WhiteElo "2560"]
[BlackElo "2380"]
[WhiteTeam "ENG"]
[BlackTeam "PER"]
[WhiteClock "0:00:34"]
[BlackClock "0:00:00"]

1. e4 {[%clk 0:03:00]}  c6 {[%clk 0:02:59]} 2. c3 {[%clk 0:02:58]}  d5 {[%clk 0:02:59]} 3. e5 {[%clk 0:02:59]}  Bf5 {[%clk 0:02:59]} 4. d4 {[%clk 0:02:59]}  e6 {[%clk 0:02:59]} 5. Nf3 {[%clk 0:03:00]}  Ne7 {[%clk 0:02:58]} 6. Be2 {[%clk 0:03:00]}  Nd7 {[%clk 0:02:58]} 7. Nbd2 {[%clk 0:03:01]}  h6 {[%clk 0:02:58]} 8. Nf1 {[%clk 0:03:01]}  Bh7 {[%clk 0:02:55]} 9. Ne3 {[%clk 0:03:01]}  c5 {[%clk 0:02:55]} 10. O-O {[%clk 0:03:02]}  Nc6 {[%clk 0:02:51]} 11. Re1 {[%clk 0:03:02]}  Be7 {[%clk 0:02:51]} 12. a3 {[%clk 0:03:00]}  c4 {[%clk 0:02:49]} 13. Nd2 {[%clk 0:02:48]}  b5 {[%clk 0:02:48]} 14. f4 {[%clk 0:02:48]}  a5 {[%clk 0:02:41]} 15. Bg4 {[%clk 0:02:49]}  g6 {[%clk 0:02:17]} 16. Bh3 {[%clk 0:02:39]}  h5 {[%clk 0:01:57]} 17. f5 {[%clk 0:02:37]}  gxf5 {[%clk 0:01:56]} 18. Qxh5 {[%clk 0:02:36]}  Nf8 {[%clk 0:01:48]} 19. Nf3 {[%clk 0:02:25]}  Rg8 {[%clk 0:01:47]} 20. g3 {[%clk 0:02:22]}  Bg6 {[%clk 0:01:47]} 21. Qh6 {[%clk 0:02:22]}  Qb6 {[%clk 0:01:22]} 22. Ng2 {[%clk 0:02:16]}  Nd7 {[%clk 0:01:13]} 23. Bg5 {[%clk 0:02:13]}  Bxg5 {[%clk 0:01:03]} 24. Qxg5 {[%clk 0:02:11]}  Rh8 {[%clk 0:00:57]} 25. Nf4 {[%clk 0:02:10]}  Qd8 {[%clk 0:00:48]} 26. Bg2 {[%clk 0:01:38]}  Qxg5 {[%clk 0:00:46]} 27. Nxg5 {[%clk 0:01:37]}  Ke7 {[%clk 0:00:45]} 28. Ngxe6 {[%clk 0:01:36]}  fxe6 {[%clk 0:00:33]} 29. Nxg6+ {[%clk 0:01:29]}  Kf7 {[%clk 0:00:33]} 30. Nxh8+ {[%clk 0:01:29]}  Rxh8 {[%clk 0:00:33]} 31. h4 {[%clk 0:01:21]}  Rg8 {[%clk 0:00:33]} 32. Kf2 {[%clk 0:01:21]}  Nb6 {[%clk 0:00:33]} 33. Re2 {[%clk 0:01:17]}  Kg7 {[%clk 0:00:31]} 34. Bh3 {[%clk 0:01:15]}  Rf8 {[%clk 0:00:31]} 35. Rg1 {[%clk 0:01:15]}  Kh6 {[%clk 0:00:31]} 36. Ke3 {[%clk 0:01:14]}  b4 {[%clk 0:00:30]} 37. axb4 {[%clk 0:01:14]}  axb4 {[%clk 0:00:30]} 38. g4 {[%clk 0:01:13]}  f4+ {[%clk 0:00:20]} 39. Kf3 {[%clk 0:01:13]}  Na4 {[%clk 0:00:20]} 40. g5+ {[%clk 0:01:13]}  Kg7 {[%clk 0:00:21]} 41. Rc2 {[%clk 0:01:02]}  bxc3 {[%clk 0:00:20]} 42. bxc3 {[%clk 0:01:00]}  Rb8 {[%clk 0:00:10]} 43. Bxe6 {[%clk 0:00:50]}  Nxc3 {[%clk 0:00:10]} 44. Rxc3 {[%clk 0:00:46]}  Nxd4+ {[%clk 0:00:10]} 45. Kxf4 {[%clk 0:00:47]}  Nxe6+ {[%clk 0:00:11]} 46. Kg4 {[%clk 0:00:45]}  Rb4 {[%clk 0:00:08]} 47. h5 {[%clk 0:00:38]}  d4 {[%clk 0:00:08]} 48. Ra3 {[%clk 0:00:39]}  Rb7 {[%clk 0:00:07]} 49. Kf5 {[%clk 0:00:37]}  Nc5 {[%clk 0:00:07]} 50. h6+ {[%clk 0:00:37]}  Kh7 {[%clk 0:00:07]} 51. g6+ {[%clk 0:00:34]}  Kxh6 {[%clk 0:00:07]} 52. Rh1+ {[%clk 0:00:35]}  Kg7 {[%clk 0:00:06]} 53. Rh7+ {[%clk 0:00:36]}  Kg8 {[%clk 0:00:00]} 54. Ra8+ {[%clk 0:00:34]} 1-0

[Event "December 5 Late 2023"]
[Site "https://www.chess.com"]
[Date "2023.12.05"]
[Round "3"]
[White "Karamsetty, Jeevan"]
[Black "Akhayan, Ruben"]
[Result "1-0"]
[Board "115"]
[TimeControl "180+1"]
[WhiteFideId "2025337"]
[BlackFideId "204439"]
[WhiteElo "2559"]
[BlackElo "2377"]
[WhiteTeam "USA"]
[BlackTeam "BEL"]
[WhiteClock "0:01:39"]
[BlackClock "0:01:15"]

1. g3 {[%clk 0:03:00]}  g6 {[%clk 0:02:59]} 2. Bg2 {[%clk 0:03:01]}  Bg7 {[%clk 0:02:58]} 3. Nf3 {[%clk 0:03:01]}  Nf6 {[%clk 0:02:58]} 4. O-O {[%clk 0:03:02]}  O-O {[%clk 0:02:58]} 5. Nc3 {[%clk 0:03:02]}  d5 {[%clk 0:02:58]} 6. d4 {[%clk 0:03:01]}  Ne4 {[%clk 0:02:56]} 7. Ne5 {[%clk 0:02:53]}  Nxc3 {[%clk 0:02:53]} 8. bxc3 {[%clk 0:02:54]}  c6 {[%clk 0:02:50]} 9. Rb1 {[%clk 0:02:52]}  Nd7 {[%clk 0:02:49]} 10. Nd3 {[%clk 0:02:51]}  Nb6 {[%clk 0:02:48]} 11. e4 {[%clk 0:02:50]}  dxe4 {[%clk 0:02:44]} 12. Bxe4 {[%clk 0:02:51]}  Bf5 {[%clk 0:02:43]} 13. Bxf5 {[%clk 0:02:50]}  gxf5 {[%clk 0:02:43]} 14. Qh5 {[%clk 0:02:51]}  e6 {[%clk 0:02:43]} 15. Bg5 {[%clk 0:02:48]}  Qd5 {[%clk 0:02:30]} 16. Nf4 {[%clk 0:02:37]}  Qxa2 {[%clk 0:02:22]} 17. Bh6 {[%clk 0:02:37]}  f6 {[%clk 0:02:13]} 18. Rbe1 {[%clk 0:02:17]}  Rae8 {[%clk 0:02:09]} 19. d5 {[%clk 0:02:12]}  e5 {[%clk 0:01:44]} 20. Bxg7 {[%clk 0:01:45]}  Kxg7 {[%clk 0:01:41]} 21. Ne6+ {[%clk 0:01:44]}  Rxe6 {[%clk 0:01:41]} 22. dxe6 {[%clk 0:01:45]}  Qxe6 {[%clk 0:01:41]} 23. Ra1 {[%clk 0:01:41]}  Ra8 {[%clk 0:01:29]} 24. Rfb1 {[%clk 0:01:41]}  Qd7 {[%clk 0:01:15]} 25. Rxb6 {[%clk 0:01:39]} 1-0

[Event "December 5 Late 2023"]
[Site "https://www.chess.com"]
[Date "2023.12.05"]
[Round "3"]
[White "Polanco Nunez, Yoel Estarling"]
[Black "Hajiyev, Kanan"]
[Result "1-0"]
[Board "121"]
[TimeControl "180+1"]
[WhiteFideId "6401783"]
[BlackFideId "13404148"]
[WhiteElo "2278"]
[BlackElo "2551"]
[WhiteTeam "DOM"]
[BlackTeam "AZE"]
[WhiteClock "0:00:48"]
[BlackClock "0:00:43"]

1. d4 {[%clk 0:02:48]}  d5 {[%clk 0:02:59]} 2. c4 {[%clk 0:02:48]}  c6 {[%clk 0:02:59]} 3. Nc3 {[%clk 0:02:48]}  Nf6 {[%clk 0:02:59]} 4. e3 {[%clk 0:02:49]}  Bf5 {[%clk 0:02:59]} 5. Bd3 {[%clk 0:02:35]}  Bxd3 {[%clk 0:02:58]} 6. Qxd3 {[%clk 0:02:36]}  e6 {[%clk 0:02:59]} 7. Nf3 {[%clk 0:02:36]}  Bb4 {[%clk 0:02:59]} 8. O-O {[%clk 0:02:36]}  O-O {[%clk 0:02:59]} 9. b3 {[%clk 0:02:33]}  Bxc3 {[%clk 0:02:59]} 10. Qxc3 {[%clk 0:02:33]}  Ne4 {[%clk 0:03:00]} 11. Qc2 {[%clk 0:02:34]}  Nd7 {[%clk 0:03:00]} 12. Nd2 {[%clk 0:02:33]}  Ndf6 {[%clk 0:03:01]} 13. Bb2 {[%clk 0:02:30]}  a5 {[%clk 0:02:56]} 14. a4 {[%clk 0:02:30]}  Nxd2 {[%clk 0:02:57]} 15. Qxd2 {[%clk 0:02:30]}  Ne4 {[%clk 0:02:57]} 16. Qc2 {[%clk 0:02:30]}  Qg5 {[%clk 0:02:58]} 17. Rae1 {[%clk 0:02:29]}  h5 {[%clk 0:02:51]} 18. f3 {[%clk 0:02:28]}  Nf6 {[%clk 0:02:41]} 19. e4 {[%clk 0:02:27]}  Qg6 {[%clk 0:02:41]} 20. Kh1 {[%clk 0:02:24]}  Rfe8 {[%clk 0:02:40]} 21. Re2 {[%clk 0:02:23]}  Rad8 {[%clk 0:02:39]} 22. Rfe1 {[%clk 0:02:23]}  h4 {[%clk 0:02:34]} 23. exd5 {[%clk 0:02:17]}  Qxc2 {[%clk 0:02:34]} 24. Rxc2 {[%clk 0:02:16]}  cxd5 {[%clk 0:02:35]} 25. c5 {[%clk 0:02:16]}  Ra8 {[%clk 0:02:25]} 26. Bc1 {[%clk 0:02:15]}  Rec8 {[%clk 0:02:21]} 27. Bg5 {[%clk 0:02:10]}  h3 {[%clk 0:02:20]} 28. g4 {[%clk 0:02:10]}  Nd7 {[%clk 0:02:10]} 29. Kg1 {[%clk 0:02:07]}  Rc6 {[%clk 0:02:09]} 30. Kf2 {[%clk 0:02:03]}  b6 {[%clk 0:02:09]} 31. Rec1 {[%clk 0:01:55]}  Rac8 {[%clk 0:02:09]} 32. Be3 {[%clk 0:01:54]}  bxc5 {[%clk 0:02:08]} 33. dxc5 {[%clk 0:01:54]}  e5 {[%clk 0:02:08]} 34. Kg3 {[%clk 0:01:42]}  d4 {[%clk 0:02:07]} 35. Bd2 {[%clk 0:01:42]}  Rxc5 {[%clk 0:02:00]} 36. Rxc5 {[%clk 0:01:41]}  Rxc5 {[%clk 0:02:01]} 37. Rxc5 {[%clk 0:01:40]}  Nxc5 {[%clk 0:02:02]} 38. Bxa5 {[%clk 0:01:40]}  Nxb3 {[%clk 0:02:02]} 39. Bb4 {[%clk 0:01:36]}  d3 {[%clk 0:02:01]} 40. Kf2 {[%clk 0:01:31]}  Nd4 {[%clk 0:02:00]} 41. Bc3 {[%clk 0:01:18]}  Nb3 {[%clk 0:01:34]} 42. a5 {[%clk 0:01:04]}  Nc5 {[%clk 0:01:32]} 43. Bxe5 {[%clk 0:01:01]}  f6 {[%clk 0:01:27]} 44. Bd4 {[%clk 0:01:01]}  Na6 {[%clk 0:01:09]} 45. Ke3 {[%clk 0:00:59]}  Kf7 {[%clk 0:01:07]} 46. Kxd3 {[%clk 0:00:59]}  Ke6 {[%clk 0:01:06]} 47. Ke4 {[%clk 0:00:58]}  Nb4 {[%clk 0:01:04]} 48. Bc3 {[%clk 0:00:54]}  Na6 {[%clk 0:00:57]} 49. Bd4 {[%clk 0:00:52]}  Nb4 {[%clk 0:00:54]} 50. Be3 {[%clk 0:00:53]}  Kd6 {[%clk 0:00:51]} 51. Bc1 {[%clk 0:00:49]}  g6 {[%clk 0:00:43]} 52. Ba3 {[%clk 0:00:48]} 1-0

[Event "December 5 Late 2023"]
[Site "https://www.chess.com"]
[Date "2023.12.05"]
[Round "3"]
[White "Kashefi, Amir Hosein"]
[Black "Golubenko, Valentina"]
[Result "1-0"]
[Board "125"]
[TimeControl "180+1"]
[WhiteFideId "12557935"]
[BlackFideId "4501993"]
[WhiteElo "2539"]
[BlackElo "2235"]
[WhiteTeam "IRI"]
[BlackTeam "CRO"]
[WhiteClock "0:01:51"]
[BlackClock "0:00:17"]

1. d4 {[%clk 0:02:57]}  Nf6 {[%clk 0:02:57]} 2. Nf3 {[%clk 0:02:57]}  g6 {[%clk 0:02:57]} 3. g3 {[%clk 0:02:58]}  Bg7 {[%clk 0:02:56]} 4. Bg2 {[%clk 0:02:59]}  c5 {[%clk 0:02:56]} 5. O-O {[%clk 0:03:00]}  cxd4 {[%clk 0:02:47]} 6. Qxd4 {[%clk 0:03:00]}  Nc6 {[%clk 0:02:46]} 7. Qh4 {[%clk 0:03:00]}  O-O {[%clk 0:02:46]} 8. Nc3 {[%clk 0:02:51]}  d5 {[%clk 0:02:45]} 9. Bh6 {[%clk 0:02:51]}  Bf5 {[%clk 0:02:34]} 10. Ng5 {[%clk 0:02:48]}  Ne5 {[%clk 0:01:10]} 11. Nxd5 {[%clk 0:02:46]}  Neg4 {[%clk 0:00:59]} 12. Nxf6+ {[%clk 0:02:41]}  Nxf6 {[%clk 0:00:58]} 13. e4 {[%clk 0:02:39]}  Bc8 {[%clk 0:00:25]} 14. Bxg7 {[%clk 0:02:37]}  Kxg7 {[%clk 0:00:24]} 15. e5 {[%clk 0:02:37]}  Nh5 {[%clk 0:00:24]} 16. g4 {[%clk 0:02:37]}  f6 {[%clk 0:00:24]} 17. gxh5 {[%clk 0:02:35]}  fxg5 {[%clk 0:00:24]} 18. Qxg5 {[%clk 0:02:32]}  Rf5 {[%clk 0:00:24]} 19. h6+ {[%clk 0:02:32]}  Kh8 {[%clk 0:00:23]} 20. Rad1 {[%clk 0:02:24]}  Qc7 {[%clk 0:00:21]} 21. Qg3 {[%clk 0:02:18]}  Be6 {[%clk 0:00:19]} 22. b3 {[%clk 0:02:16]}  Raf8 {[%clk 0:00:19]} 23. Bh3 {[%clk 0:02:10]}  Rf3 {[%clk 0:00:16]} 24. Bxe6 {[%clk 0:02:05]}  Rxg3+ {[%clk 0:00:15]} 25. fxg3 {[%clk 0:02:05]}  Rxf1+ {[%clk 0:00:15]} 26. Rxf1 {[%clk 0:02:04]}  Qb6+ {[%clk 0:00:15]} 27. Rf2 {[%clk 0:01:53]}  Qxe6 {[%clk 0:00:13]} 28. Rf8+ {[%clk 0:01:53]}  Qg8 {[%clk 0:00:13]} 29. Rxg8+ {[%clk 0:01:52]}  Kxg8 {[%clk 0:00:14]} 30. e6 {[%clk 0:01:52]}  Kf8 {[%clk 0:00:14]} 31. Kf2 {[%clk 0:01:52]}  Ke8 {[%clk 0:00:15]} 32. Ke3 {[%clk 0:01:53]}  Kd8 {[%clk 0:00:16]} 33. Kd4 {[%clk 0:01:54]}  Kc7 {[%clk 0:00:17]} 34. Kc5 {[%clk 0:01:54]}  b6+ {[%clk 0:00:17]} 35. Kd5 {[%clk 0:01:54]}  Kb7 {[%clk 0:00:17]} 36. c4 {[%clk 0:01:54]}  Kc7 {[%clk 0:00:17]} 37. b4 {[%clk 0:01:54]}  Kb7 {[%clk 0:00:18]} 38. a4 {[%clk 0:01:55]}  Kc7 {[%clk 0:00:19]} 39. g4 {[%clk 0:01:52]}  Kb7 {[%clk 0:00:20]} 40. h4 {[%clk 0:01:51]}  Kc7 {[%clk 0:00:21]} 41. g5 {[%clk 0:01:49]}  Kb7 {[%clk 0:00:22]} 42. h5 {[%clk 0:01:48]}  gxh5 {[%clk 0:00:20]} 43. g6 {[%clk 0:01:49]}  hxg6 {[%clk 0:00:19]} 44. h7 {[%clk 0:01:50]}  h4 {[%clk 0:00:20]} 45. h8=Q {[%clk 0:01:51]}  g5 {[%clk 0:00:17]} 46. Qe8 {[%clk 0:01:51]} 1-0

[Event "December 5 Late 2023"]
[Site "https://www.chess.com"]
[Date "2023.12.05"]
[Round "3"]
[White "Wieczorek, Zbigniew"]
[Black "Lewicki, Miroslaw"]
[Result "1-0"]
[Board "126"]
[TimeControl "180+1"]
[WhiteFideId "1102001"]
[BlackFideId "1113380"]
[WhiteElo "2208"]
[BlackElo "2535"]
[WhiteTeam "POL"]
[BlackTeam "POL"]
[WhiteClock "0:00:12"]
[BlackClock "0:01:45"]

1. Nf3 {[%clk 0:03:00]}  Nf6 {[%clk 0:03:00]} 2. c4 {[%clk 0:03:00]}  e6 {[%clk 0:02:59]} 3. d4 {[%clk 0:02:58]}  c5 {[%clk 0:02:59]} 4. d5 {[%clk 0:02:58]}  d6 {[%clk 0:02:52]} 5. Nc3 {[%clk 0:02:55]}  Nbd7 {[%clk 0:02:52]} 6. dxe6 {[%clk 0:02:54]}  fxe6 {[%clk 0:02:52]} 7. e4 {[%clk 0:02:52]}  Be7 {[%clk 0:02:52]} 8. Be2 {[%clk 0:02:52]}  O-O {[%clk 0:02:52]} 9. O-O {[%clk 0:02:38]}  a6 {[%clk 0:02:51]} 10. Ng5 {[%clk 0:02:27]}  Ne5 {[%clk 0:02:49]} 11. f4 {[%clk 0:02:25]}  Nc6 {[%clk 0:02:49]} 12. f5 {[%clk 0:02:26]}  exf5 {[%clk 0:02:48]} 13. exf5 {[%clk 0:02:26]}  Nd4 {[%clk 0:02:49]} 14. Bd3 {[%clk 0:02:16]}  h6 {[%clk 0:02:41]} 15. Nh3 {[%clk 0:02:04]}  Nd7 {[%clk 0:02:23]} 16. Nf4 {[%clk 0:01:34]}  Ne5 {[%clk 0:02:21]} 17. Ng6 {[%clk 0:01:25]}  Nxg6 {[%clk 0:02:16]} 18. fxg6 {[%clk 0:01:24]}  Bf6 {[%clk 0:02:13]} 19. Nd5 {[%clk 0:01:21]}  Be5 {[%clk 0:02:13]} 20. Rf7 {[%clk 0:00:31]}  Rxf7 {[%clk 0:02:11]} 21. gxf7+ {[%clk 0:00:31]}  Kxf7 {[%clk 0:02:12]} 22. Qh5+ {[%clk 0:00:26]}  Kg8 {[%clk 0:01:48]} 23. Qg6 {[%clk 0:00:25]}  Qh4 {[%clk 0:01:45]} 24. Qe8# {[%clk 0:00:12]} 1-0